bitfinex-derivatives/quotes_ETHF0:USTF0_20260128
["timestamp","ask_amount","ask_price","bid_price","bid_amount"]
[1769597140042,0.16189375,3028.3,3026.8,4.97375626]
[1769597140844,0.16189375,3028.3,3026.9,0.06457424]
[1769597141044,0.16189375,3028.3,3027.1,0.06457424]
[1769597142053,0.16189375,3028.3,3027.2,0.06728589]
[1769597143053,0.16189375,3028.5,3027.3,0.06694049]
[1769597153165,0.16189375,3028.5,3027.5,0.06356939]
[1769597155565,0.16189375,3028.5,3027.6,1.37306518]
[1769597158565,0.16189375,3028.5,3027.7,0.06097925]
[1769597159964,0.1494211,3029.2,3028.0,1.37032621]
[1769597160162,0.1494211,3029.0,3028.0,1.31140526]
[1769597160364,0.1494211,3028.8,3027.8,1.31140526]
[1769597160762,0.1494211,3028.8,3028.0,1.31140526]
[1769597161562,0.1494211,3029.0,3028.4,1.31140526]
[1769597161754,0.003189,3029.3,3028.7,1.36970133]
[1769597162966,0.1494211,3029.4,3028.9,1.31140526]
[1769597163169,0.14521625,3029.4,3028.9,1.31140526]
[1769597163861,0.14521625,3029.4,3028.7,1.36970133]
[1769597164058,0.14899297,3029.4,3028.7,1.36970133]
[1769597166366,0.14899297,3029.4,3028.8,0.05986191]
[1769597169766,0.14899297,3029.4,3028.6,0.05911956]
[1769597177176,0.14899297,3029.4,3028.4,0.06071653]
[1769597180377,0.14899297,3029.4,3028.5,0.06176842]
[1769597187877,0.00377672,3029.4,3028.7,0.04276873]
[1769597188979,0.14267814,3029.8,3028.9,0.04258146]
[1769597190079,0.14520604,3029.8,3028.9,0.04258146]
[1769597190983,0.14520604,3029.8,3029.0,0.0420259]
[1769597191183,0.14520604,3029.8,3029.0,0.04461596]
[1769597197190,0.14520604,3029.8,3029.1,0.04273055]
[1769597199789,0.0025279,3029.8,3029.5,0.04232206]
[1769597200701,0.14267814,3030.6,3029.5,0.04232206]
[1769597201583,0.14673561,3030.6,3029.5,0.04232206]
[1769597204598,0.14267814,3030.4,3029.5,0.04232206]
[1769597204803,0.14267814,3029.9,3029.0,0.00259006]
[1769597204992,0.14267814,3029.7,3029.0,0.00259006]
[1769597205194,0.14267814,3029.5,3029.0,0.00259006]
[1769597206207,1.31140526,3030.3,3029.0,0.00259006]
[1769597206208,0.14267814,3030.0,3029.2,0.04006839]
[1769597206411,0.14267814,3029.8,3029.0,0.00259006]
[1769597207099,0.14267814,3029.4,3028.4,4.90452542]
[1769597207300,0.14267814,3029.2,3028.2,0.04250617]
[1769597207497,0.14267814,3029.0,3028.0,0.16536]
[1769597207698,0.14267814,3029.0,3028.1,3.726]
[1769597208105,0.14267814,3029.0,3028.1,0.00268418]
[1769597208510,0.14267814,3028.8,3028.1,0.00268418]
[1769597208711,0.14267814,3028.8,3027.7,3.304]
[1769597208913,0.14267814,3028.6,3027.6,0.04422297]
[1769597209108,0.14267814,3028.4,3027.4,3.77007333]
[1769597209610,0.14579036,3028.4,3027.4,3.77317189]
[1769597209807,0.14579036,3028.4,3027.5,1.31140526]
[1769597210002,0.14579036,3028.4,3027.5,1.35621327]
[1769597210610,0.14579036,3028.4,3027.5,5.08821327]
[1769597214018,0.14579036,3028.4,3027.6,0.0442294]
[1769597214518,0.14579036,3028.4,3027.7,1.31140526]
[1769597215617,0.14579036,3028.4,3027.6,0.0442294]
[1769597217013,0.00311222,3028.4,3027.6,0.0442294]
[1769597217220,0.14637718,3029.1,3028.1,0.0608314]
[1769597218212,0.15023638,3029.1,3028.1,0.0608314]
[1769597220117,0.16526,3029.8,3028.5,0.14325738]
[1769597220324,0.16527,3029.7,3028.2,2.08225738]
[1769597220617,0.16527,3029.7,3028.3,0.14325738]
[1769597221019,0.16906542,3029.7,3028.3,0.14325738]
[1769597222118,0.14637718,3029.6,3028.3,0.14325738]
[1769597222815,0.14637718,3029.6,3028.5,0.14325738]
[1769597226525,0.14637718,3029.6,3028.2,0.14325738]
[1769597233630,0.14637718,3029.6,3028.3,0.14325738]
[1769597234225,0.14637718,3029.6,3028.5,0.14325738]
[1769597235133,0.14637718,3029.5,3028.5,0.14325738]
[1769597243243,0.5,3029.1,3028.5,0.14325738]
[1769597244941,0.14637718,3029.5,3028.5,0.14325738]
[1769597246535,0.26692672,3030.8,3028.5,0.14325738]
[1769597246536,0.1403959,3030.2,3029.2,0.14733094]
[1769597246855,0.1403959,3032.0,3030.1,0.14733094]
[1769597247042,0.1403959,3031.8,3030.9,5.05270738]
[1769597247249,2.4736827,3031.6,3031.1,0.14733094]
[1769597247540,2.47753566,3031.6,3031.1,0.14985833]
[1769597247742,2.47753566,3031.6,3031.0,3.461]
[1769597247944,2.47753566,3031.6,3031.0,3.60833094]
[1769597248142,2.47753566,3031.6,3031.1,0.14733094]
[1769597248840,2.47753566,3031.6,3031.1,0.1508909]
[1769597249237,2.61793156,3031.6,3031.1,0.00355996]
[1769597250747,2.47753566,3031.6,3031.1,0.00355996]
[1769597251846,2.61793156,3031.6,3031.1,0.00355996]
[1769597252245,0.1403959,3031.5,3029.9,0.16525]
[1769597252451,0.1403959,3031.5,3030.2,0.14733094]
[1769597253340,0.1403959,3031.5,3030.2,0.15026562]
[1769597254244,0.1403959,3031.5,3030.2,0.00293468]
[1769597259555,0.1403959,3031.5,3030.2,0.15026562]
[1769597262350,0.1403959,3031.5,3030.2,0.00293468]
[1769597265045,0.1403959,3031.5,3030.2,0.15026562]
[1769597265246,0.16513,3032.3,3030.9,1.31134603]
[1769597265452,0.16513,3032.3,3030.5,0.14733094]
[1769597266159,0.16930302,3032.3,3030.5,0.14733094]
[1769597266454,0.16507,3033.3,3031.3,0.14733094]
[1769597266659,0.16508,3033.2,3031.3,0.14733094]
[1769597267262,0.1403959,3033.1,3031.3,0.14733094]
[1769597267558,0.14351029,3033.1,3031.3,0.14733094]
[1769597267757,0.1403959,3033.0,3031.3,0.14733094]
[1769597268064,0.1403959,3032.9,3031.3,0.14733094]
[1769597268660,0.1403959,3032.9,3031.4,2.08533094]
[1769597269759,0.1403959,3032.9,3031.4,0.14733094]
[1769597270259,0.1403959,3032.5,3031.1,0.14733094]
[1769597271156,0.1403959,3032.5,3030.7,1.31134603]
[1769597271354,0.1403959,3032.5,3030.8,2.08433094]
[1769597271555,0.1403959,3032.5,3030.9,0.14733094]
[1769597273859,0.1403959,3032.4,3030.9,0.14733094]
[1769597274060,0.1403959,3032.3,3030.9,0.14733094]
[1769597274263,0.1403959,3032.1,3030.5,0.14733094]
[1769597274556,0.1403959,3032.0,3030.5,0.14733094]
[1769597281766,0.1403063,3031.9,3030.5,0.14733094]
[1769597282268,0.1403063,3031.9,3030.5,3.71433094]
[1769597282560,0.1403063,3031.9,3030.6,0.14823621]
[1769597283567,0.1403063,3031.7,3030.3,0.14823621]
[1769597283764,0.1403063,3031.6,3030.3,0.14823621]
[1769597291568,0.1403063,3031.6,3030.7,1.45706903]
[1769597294270,0.1403063,3031.6,3030.7,1.30883282]
[1769597296467,0.1403063,3031.6,3030.5,1.30883282]
[1769597299977,0.1403063,3031.5,3030.5,1.30883282]
[1769597300277,0.1403063,3031.5,3030.5,1.45706903]
[1769597300475,0.1403063,3031.5,3030.7,1.30883282]
[1769597301261,0.1403063,3031.5,3030.7,1.45706903]
[1769597306479,3.09040136,3031.4,3030.7,1.45706903]
[1769597306671,0.1403063,3031.5,3030.7,1.45706903]
[1769597306881,3.09031746,3031.4,3030.8,0.15562793]
[1769597307073,0.1403063,3031.5,3030.8,0.15562793]
[1769597307272,3.09056726,3031.4,3030.8,0.15562793]
[1769597307476,0.1403063,3031.5,3030.8,0.15562793]
[1769597307773,3.09061971,3031.4,3030.8,0.15562793]
[1769597307970,0.1403063,3031.5,3030.8,0.15562793]
[1769597308174,3.09061993,3031.4,3030.8,0.15562793]
[1769597308374,0.1403063,3031.5,3030.8,0.15562793]
[1769597308576,3.09108194,3031.4,3030.8,0.15562793]
[1769597308772,0.1403063,3031.5,3030.8,0.15562793]
[1769597309078,3.09103864,3031.4,3030.8,0.15562793]
[1769597309276,0.1403063,3031.5,3030.8,0.15562793]
[1769597309476,3.09159092,3031.4,3030.8,0.15562793]
[1769597309678,0.1403063,3031.5,3030.8,0.15562793]
[1769597309977,3.24372114,3031.4,3030.8,0.15562793]
[1769597310281,0.15213098,3031.4,3030.8,0.15562793]
[1769597311484,3.09241965,3031.3,3030.8,0.15562793]
[1769597311778,0.15213098,3031.4,3030.8,0.15562793]
[1769597311979,3.09241968,3031.3,3030.8,0.15562793]
[1769597312182,0.15213098,3031.4,3030.8,0.15562793]
[1769597312373,3.09286764,3031.3,3030.8,0.15562793]
[1769597312672,0.15213098,3031.4,3030.8,0.15562793]
[1769597312872,3.09286759,3031.3,3030.8,0.15562793]
[1769597313172,0.15213098,3031.4,3030.8,0.15562793]
[1769597313372,3.24552317,3031.3,3030.8,0.15562793]
[1769597313570,0.15213098,3031.3,3030.8,0.15562793]
[1769597318179,0.16516,3031.6,3031.0,0.15562793]
[1769597319483,0.31729098,3031.6,3031.0,0.15562793]
[1769597322586,0.31729098,3031.6,3030.9,1.30883282]
[1769597323386,0.31729098,3031.6,3030.9,1.46446075]
[1769597323987,0.15213098,3031.5,3030.9,1.30883282]
[1769597328491,0.15213098,3031.3,3030.9,1.30883282]
[1769597329797,0.15213098,3031.3,3030.8,1.30883282]
[1769597331497,0.15213098,3031.3,3030.8,1.46446075]
[1769597331698,0.15213098,3031.5,3030.8,1.46446075]
[1769597331899,3.09602706,3031.4,3030.8,1.46446075]
[1769597332198,0.15213098,3031.5,3030.8,1.46446075]
[1769597332400,3.09606794,3031.4,3030.8,1.46446075]
[1769597332600,0.15213098,3031.5,3030.8,1.46446075]
[1769597332801,3.09606803,3031.4,3030.8,1.46446075]
[1769597333006,0.15213098,3031.5,3030.8,1.46446075]
[1769597333206,0.15213098,3031.5,3031.0,1.46446075]
[1769597333502,0.15213098,3032.0,3031.0,1.46446075]
[1769597333699,0.15213098,3031.8,3031.1,0.15562793]
[1769597333898,3.09589404,3031.7,3031.1,0.15562793]
[1769597336208,3.24382684,3031.7,3031.1,0.15562793]
[1769597336407,3.24382684,3031.6,3031.1,0.15562793]
[1769597336706,3.09589404,3031.5,3031.1,0.15562793]
[1769597337509,3.09589404,3031.5,3031.0,1.30883282]
[1769597337707,3.09589404,3031.5,3030.4,4.90537644]
[1769597337708,3.09589404,3031.5,3030.5,1.30877819]
[1769597339510,3.09589404,3031.5,3030.6,0.14721215]
[1769597341411,3.24382684,3031.5,3030.6,0.14721215]
[1769597341611,0.1479328,3031.5,3030.6,0.14721215]
[1769597344112,0.16514,3032.0,3031.0,0.14721215]
[1769597344405,0.16512,3032.5,3031.5,0.14721215]
[1769597344610,44.104,3032.7,3031.5,0.14721215]
[1769597345311,3.304,3032.7,3031.5,0.14721215]
[1769597346109,3.4519328,3032.7,3031.5,0.14721215]
[1769597346814,0.1479328,3032.6,3031.5,0.14721215]
[1769597351020,0.1479328,3033.0,3031.9,0.14721215]
[1769597353019,0.00311439,3033.1,3031.9,0.14721215]
[1769597355612,0.16503,3034.0,3032.7,0.14721215]
[1769597355816,0.1479328,3033.9,3032.7,0.14721215]
[1769597356717,0.15192227,3033.9,3032.7,0.15099076]
[1769597356918,0.1479328,3033.5,3032.7,0.00377861]
[1769597357224,0.1479328,3033.5,3032.7,0.15099076]
[1769597361624,0.15192227,3033.9,3032.7,0.15099076]
[1769597366420,0.14645446,3033.6,3032.2,0.13805232]
[1769597367327,0.14645446,3033.6,3032.2,0.14079373]
[1769597368627,0.14645446,3033.5,3032.2,0.14079373]
[1769597370527,0.14645446,3033.0,3032.2,0.00274141]
[1769597370726,0.14645446,3032.9,3031.7,0.13805232]
[1769597371724,0.14645446,3032.9,3031.7,0.14088604]
[1769597377029,0.14645446,3033.2,3032.1,0.13805232]
[1769597378634,0.14645446,3033.2,3031.8,0.13805232]
[1769597378833,0.00398947,3033.9,3033.0,0.13805232]
[1769597379027,0.00398947,3033.9,3033.2,0.13805232]
[1769597379334,0.14645446,3034.6,3033.4,0.13805232]
[1769597380425,0.14993958,3034.6,3033.4,0.13805232]
[1769597382531,0.14645446,3034.2,3033.0,0.13805232]
[1769597382827,0.14645446,3034.2,3032.6,0.13805232]
[1769597383633,0.14645446,3034.1,3032.6,0.13805232]
[1769597383832,0.14645446,3034.1,3032.8,0.13805232]
[1769597390246,0.14645446,3034.1,3033.2,0.13805232]
[1769597393950,0.14645446,3034.1,3033.1,1.30877819]
[1769597394939,0.14645446,3034.1,3032.8,0.27151815]
[1769597395645,0.14462049,3033.8,3032.8,0.13805232]
[1769597396148,0.14462049,3033.8,3032.5,0.13346583]
[1769597396538,0.14462049,3033.6,3032.6,0.13346583]
[1769597397749,0.14462049,3033.6,3032.9,1.30707453]
[1769597400348,0.14462049,3033.6,3032.7,1.30707453]
[1769597400846,0.14462049,3033.6,3032.9,1.30707453]
[1769597401039,0.14462049,3033.6,3033.1,1.30707453]
[1769597401756,0.14462049,3033.7,3032.9,1.30707453]
[1769597402050,0.14462049,3033.7,3032.9,1.44054036]
[1769597402249,0.14462049,3033.7,3033.0,0.13346583]
[1769597402648,0.14462049,3033.7,3032.9,1.30707453]
[1769597402853,0.14462049,3033.7,3032.7,1.44054036]
[1769597403348,0.14462049,3033.7,3032.5,1.44054036]
[1769597403748,0.14462049,3033.7,3032.7,1.44054036]
[1769597405352,0.14462049,3033.5,3032.7,1.44054036]
[1769597406248,0.14462049,3033.5,3032.8,0.13346583]
[1769597406849,0.30966049,3033.8,3032.8,0.13346583]
[1769597407049,3.13792559,3033.7,3032.8,0.13346583]
[1769597407249,0.14462049,3033.7,3032.8,0.13346583]
[1769597407841,0.14462049,3034.2,3033.1,1.44054036]
[1769597408052,0.14462049,3034.0,3033.3,1.44054036]
[1769597408658,0.16501,3034.4,3033.4,0.13346583]
[1769597408863,2.99489204,3034.3,3033.6,0.13346583]
[1769597409160,0.14462049,3034.5,3033.6,0.13346583]
[1769597409356,2.99425463,3034.4,3033.6,0.13346583]
[1769597409660,0.00348512,3034.6,3033.9,1.30707453]
[1769597409859,0.00348512,3034.6,3033.9,1.44414496]
[1769597410061,0.00348512,3034.6,3033.9,0.13707043]
[1769597412962,0.00348512,3034.6,3034.3,0.13346583]
[1769597413167,0.14462049,3035.2,3034.3,0.13346583]
[1769597413368,2.99323313,3035.1,3034.3,0.13346583]
[1769597413566,2.99323313,3035.0,3034.3,0.13346583]
[1769597413767,2.99323313,3034.9,3034.3,0.13346583]
[1769597413967,0.25955112,3035.1,3034.3,0.13346583]
[1769597414162,0.00266805,3034.9,3034.3,0.13346583]
[1769597414368,0.14462049,3034.5,3033.9,0.0036046]
[1769597415163,1.30707453,3034.7,3033.9,0.13707043]
[1769597418668,0.14462049,3034.6,3033.9,0.0036046]
[1769597420866,0.14462049,3034.6,3033.0,3.301]
[1769597420867,0.14462049,3033.9,3033.0,0.13346583]
[1769597421067,1.45169502,3033.7,3033.0,0.13346583]
[1769597421267,1.45169502,3033.7,3032.9,1.0]
[1769597421974,0.14462049,3033.7,3032.9,1.00376485]
[1769597422874,0.14462049,3033.7,3032.9,1.13723068]
[1769597424070,1.30707453,3033.2,3032.6,0.13346583]
[1769597424375,1.45169502,3033.0,3032.2,0.13346583]
[1769597424770,0.14462049,3033.0,3032.2,0.13346583]
[1769597425177,0.14462049,3033.0,3032.2,0.13592618]
[1769597426877,0.14462049,3033.0,3032.2,0.00246035]
[1769597427480,0.13790772,3032.9,3032.2,0.00246035]
[1769597428380,0.16507,3033.4,3032.2,0.00246035]
[1769597428381,0.13790772,3033.1,3032.2,0.13650025]
[1769597432982,0.13790772,3032.9,3032.2,0.13650025]
[1769597433181,0.13790772,3032.5,3031.3,0.1340399]
[1769597433483,0.13790772,3032.4,3031.3,0.1340399]
[1769597433879,0.13790772,3032.4,3031.5,0.1340399]
[1769597434080,0.14062681,3032.4,3031.5,0.13666796]
[1769597436994,0.13790772,3031.9,3030.6,1.30707453]
[1769597437287,0.13790772,3031.9,3030.8,1.30707453]
[1769597437488,0.13790772,3031.7,3030.6,1.30707453]
[1769597437886,0.13790772,3031.7,3030.6,0.00297589]
[1769597438287,0.13790772,3031.7,3030.6,1.31005042]
[1769597438590,1.44498225,3031.4,3030.6,0.00297589]
[1769597438791,0.13790772,3031.4,3030.6,0.00297589]
[1769597441287,0.13790772,3032.1,3031.0,0.1340399]
[1769597441494,0.13790772,3031.9,3031.0,0.1340399]
[1769597442784,1.30707453,3031.8,3031.0,0.1340399]
[1769597442984,0.13790772,3031.7,3030.7,0.1340399]
[1769597443696,0.13790772,3031.5,3030.6,0.00297589]
[1769597443991,0.13790772,3031.5,3030.6,0.13701579]
[1769597445890,0.13790772,3031.9,3030.8,0.1340399]
[1769597448989,0.13790772,3031.7,3030.8,0.1340399]
[1769597449592,0.13790772,3031.7,3030.6,0.00297589]
[1769597449992,0.13790772,3031.7,3030.6,0.13701579]
[1769597459799,0.13790772,3031.7,3030.0,3.43805013]
[1769597459800,0.13325858,3031.3,3030.0,3.43805013]
[1769597460393,0.13325858,3031.3,3029.7,0.13405013]
[1769597460797,0.13325858,3030.9,3029.7,0.0039569]
[1769597461101,0.13325858,3030.5,3029.7,0.0039569]
[1769597461796,0.13325858,3030.5,3029.6,0.61909172]
[1769597462000,0.13325858,3030.2,3029.0,0.13405013]
[1769597462591,0.13325858,3030.6,3029.2,0.13405013]
[1769597462803,0.00400132,3030.6,3029.3,0.13405013]
[1769597463104,0.00400132,3030.6,3029.4,0.13405013]
[1769597465499,40.8,3031.0,3029.6,0.13405013]
[1769597465706,0.13325858,3031.2,3029.6,0.13405013]
[1769597466001,2.85117,3031.4,3029.7,2.129]
[1769597466205,0.13325858,3031.5,3029.8,0.13405013]
[1769597466602,0.13740271,3031.5,3030.0,0.13405013]
[1769597466805,0.00414413,3031.5,3030.1,0.13405013]
[1769597467504,0.00414413,3031.5,3030.3,0.13405013]
[1769597469708,0.00414413,3031.5,3030.3,5.03942657]
[1769597469912,0.13325858,3032.3,3030.6,0.13405013]
[1769597470212,0.13325858,3032.3,3030.8,0.13405013]
[1769597471008,0.13625641,3032.3,3030.8,0.13405013]
[1769597472207,0.00299783,3032.3,3030.9,0.13405013]
[1769597474113,0.13625641,3032.3,3030.9,0.13405013]
[1769597475111,0.13625641,3032.3,3031.0,3.48705013]
[1769597475314,0.13625641,3032.3,3031.1,0.13405013]
[1769597483821,0.13625641,3032.3,3030.9,3.46705013]
[1769597484017,0.13625641,3032.3,3031.0,0.13405013]
[1769597487119,0.13614578,3031.6,3030.2,0.14637431]
[1769597487329,0.13614578,3031.6,3029.9,0.14637431]
[1769597488022,0.16516,3031.7,3029.9,0.14637431]
[1769597488023,0.13614578,3031.4,3029.9,0.14637431]
[1769597491127,0.13614578,3031.3,3029.9,0.14637431]
[1769597494223,0.13614578,3031.1,3029.6,0.76546603]
[1769597494525,0.13614578,3031.1,3029.7,0.14637431]
[1769597494726,0.13614578,3031.0,3029.7,0.14637431]
[1769597496619,0.13614578,3031.0,3029.8,5.05175075]
[1769597497221,0.13614578,3031.0,3029.8,0.14637431]
[1769597498226,0.13614578,3031.4,3029.8,0.14637431]
[1769597498433,0.13614578,3031.4,3029.9,0.14637431]
[1769597499035,0.13614578,3031.3,3029.9,0.14637431]
[1769597499233,0.13614578,3031.3,3030.0,0.14637431]
[1769597499433,0.13614578,3031.3,3030.1,0.14637431]
[1769597504238,0.13614578,3031.3,3029.9,5.05175075]
[1769597504432,0.13614578,3031.3,3029.9,0.14637431]
[1769597516248,0.13614578,3031.3,3030.0,0.14609138]
[1769597517738,0.14582195,3031.0,3030.0,0.14609138]
[1769597519550,1.30962959,3030.8,3030.0,5.05146782]
[1769597519952,1.45545154,3030.8,3030.0,0.14609138]
[1769597520250,1.45545154,3030.8,3030.0,5.05146782]
[1769597520845,0.14582195,3030.7,3030.0,5.05146782]
[1769597521047,0.14582195,3030.7,3030.0,0.14609138]
[1769597521250,0.14582195,3030.7,3030.0,5.05146782]
[1769597521550,1.30962959,3030.4,3029.9,4.90537644]
[1769597522152,1.30962959,3030.4,3029.8,5.05146782]
[1769597522446,1.30962959,3030.0,3029.7,4.92349873]
[1769597522653,0.14582195,3029.7,3029.1,5.21760841]
[1769597522845,1.45545154,3029.7,3028.6,3.304]
[1769597523953,1.45836494,3029.7,3028.6,3.30818099]
[1769597524459,1.45836494,3029.7,3028.7,0.14609138]
[1769597524856,0.14582195,3029.4,3028.7,0.14609138]
[1769597526154,1.30962959,3028.9,3027.8,0.14609138]
[1769597527252,1.30962959,3028.9,3027.8,0.14935094]
[1769597527451,1.45545154,3028.9,3027.8,0.14935094]
[1769597527655,0.14582195,3028.9,3027.8,0.14935094]
[1769597528851,0.14582195,3029.6,3027.9,0.14609138]
[1769597532862,0.14582195,3029.6,3028.1,0.14609138]
[1769597535268,0.14582195,3029.6,3028.2,0.14609138]
[1769597535653,0.0029134,3029.7,3028.2,0.31144138]
[1769597535965,0.0029134,3029.7,3028.3,0.14609138]
[1769597537163,0.0029134,3029.7,3028.3,0.31143138]
[1769597537368,0.0029134,3029.7,3028.4,0.14609138]
[1769597537570,0.0029134,3029.7,3028.5,0.14609138]
[1769597539675,0.0029134,3029.7,3028.6,0.14609138]
[1769597542075,1.0,3030.0,3028.6,0.14609138]
[1769597542379,0.14582195,3030.4,3029.1,0.14609138]
[1769597543176,0.14923546,3030.4,3029.1,0.14609138]
[1769597545681,0.00341351,3030.4,3029.1,0.14609138]
[1769597545982,0.00341351,3030.4,3029.3,0.27251997]
[1769597547570,0.00341351,3030.4,3029.4,0.27251997]
[1769597548376,1.30990558,3030.3,3029.4,0.27251997]
[1769597550486,1.30990558,3029.6,3028.9,0.27251997]
[1769597550983,1.57636575,3029.8,3028.9,0.27251997]
[1769597552083,1.30990558,3029.8,3028.9,0.27251997]
[1769597553474,1.57636575,3029.6,3028.9,0.27251997]
[1769597553682,1.30990558,3029.4,3028.8,0.16531]
[1769597554485,1.30990558,3029.6,3028.9,0.27251997]
[1769597556880,1.57636575,3029.6,3028.9,0.27251997]
[1769597561092,1.57636575,3029.6,3028.8,0.16531]
[1769597561685,0.26646017,3029.5,3028.7,0.27251997]
[1769597562194,1.30990558,3029.2,3028.5,0.27251997]
[1769597562383,0.26646017,3029.6,3028.7,0.27251997]
[1769597562588,0.00341351,3030.4,3028.7,0.27251997]
[1769597562589,0.26646017,3029.8,3028.7,0.27251997]
[1769597562888,1.57636575,3029.8,3028.7,0.27251997]
[1769597563284,0.26646017,3029.7,3028.7,0.27251997]
[1769597564184,0.26646017,3029.7,3028.8,0.27251997]
[1769597564385,0.26646017,3029.9,3028.9,0.27251997]
[1769597565192,0.26646017,3029.7,3028.9,0.27251997]
[1769597565381,0.26646017,3029.3,3028.5,0.27251997]
[1769597571390,0.26646017,3029.5,3028.6,0.27251997]
[1769597571597,0.26646017,3029.7,3028.6,0.27251997]
[1769597572294,0.26646017,3029.7,3028.7,0.27251997]
[1769597573285,0.26646017,3029.9,3028.7,0.27251997]
[1769597573491,0.26646017,3029.9,3028.9,0.27251997]
[1769597577391,0.24640196,3029.5,3028.7,0.41982381]
[1769597578396,0.24640196,3029.5,3028.7,0.25450381]
[1769597578600,0.24640196,3029.5,3028.6,3.25]
[1769597578802,0.24640196,3029.5,3028.5,0.25450381]
[1769597581903,0.24640196,3029.5,3028.6,0.25450381]
[1769597587005,0.24640196,3029.5,3028.5,0.16533]
[1769597587210,0.24640196,3029.5,3028.5,3.42533]
[1769597587412,0.24640196,3029.5,3028.6,0.25450381]
[1769597590817,0.5,3029.2,3028.6,0.25450381]
[1769597591314,0.11,3029.2,3028.6,0.25450381]
[1769597597213,0.24640196,3029.8,3028.7,0.13926327]
[1769597597409,0.24640196,3029.8,3028.8,0.13926327]
[1769597613423,0.24640196,3029.8,3028.7,0.16532]
[1769597613816,0.22248786,3029.7,3028.7,3.29]
[1769597614011,0.22248786,3029.7,3028.6,0.1]
[1769597615624,0.22248786,3029.7,3028.6,5.97911067]
[1769597616626,0.22248786,3029.7,3028.6,0.1]
[1769597616929,0.22248786,3030.3,3028.8,0.10688935]
[1769597617228,0.22248786,3030.1,3028.8,0.10688935]
[1769597617922,0.22248786,3030.1,3029.0,0.27046826]
[1769597618129,0.22248786,3030.1,3029.1,0.10516826]
[1769597618528,0.22248786,3030.1,3029.2,0.10516826]
[1769597618927,0.22248786,3030.3,3029.4,0.10382526]
[1769597619128,0.22248786,3030.3,3029.5,0.10382526]
[1769597623626,0.22248786,3030.3,3029.4,3.293]
[1769597629233,0.22248786,3030.3,3029.4,3.37146601]
[1769597630035,0.22248786,3030.3,3029.5,0.07683959]
[1769597637548,0.22248786,3030.3,3029.4,3.293]
[1769597637747,0.22248786,3030.3,3029.4,3.35427472]
[1769597638949,0.22248786,3030.3,3029.5,0.05999597]
[1769597642157,0.22248786,3030.3,3029.4,3.293]
[1769597642952,0.22248786,3030.3,3029.3,0.16529]
[1769597643158,0.22248786,3030.3,3029.4,3.295]
[1769597643560,0.21105672,3030.1,3029.4,3.295]
[1769597644456,0.21105672,3030.1,3029.3,0.16529]
[1769597644653,0.21105672,3030.1,3029.3,3.46229]
[1769597644850,0.21105672,3030.1,3029.3,3.51642572]
[1769597648859,0.21105672,3030.1,3029.4,0.04868022]
[1769597652064,0.21105672,3030.1,3029.6,0.61909172]
[1769597656677,1.45453333,3029.8,3029.1,5.87911067]
[1769597656967,0.1434612,3029.7,3029.0,0.21240149]
[1769597657369,0.1434612,3029.9,3029.0,0.21240149]
[1769597661774,0.00341351,3030.4,3028.6,0.21240149]
[1769597661775,1.45575405,3029.4,3028.6,0.21240149]
[1769597661973,0.14560342,3029.3,3028.6,0.21240149]
[1769597662176,0.14560342,3029.3,3028.6,3.56340149]
[1769597664183,0.14353978,3029.5,3028.7,0.21240149]
[1769597665278,1.31015063,3029.9,3028.7,0.21240149]
[1769597665478,0.14301643,3029.8,3028.7,0.21240149]
[1769597667882,0.12857419,3030.2,3029.2,0.19911824]
[1769597670686,0.00341351,3030.4,3029.8,0.19911824]
[1769597673389,0.11571712,3030.7,3030.0,0.19911824]
[1769597673586,1.31015063,3031.1,3030.0,0.19911824]
[1769597673788,3.30117034,3031.0,3030.0,0.19911824]
[1769597674088,3.30117034,3030.9,3030.0,0.19911824]
[1769597674287,0.00408585,3030.9,3030.0,0.20273064]
[1769597675085,1.31423648,3030.9,3030.0,0.20273064]
[1769597675989,0.3306,3031.7,3030.6,0.19911824]
[1769597675990,0.16516,3031.7,3030.6,0.19911824]
[1769597676190,3.299797,3031.6,3030.6,0.19911824]
[1769597676386,3.299797,3031.5,3030.6,0.19911824]
[1769597676589,3.299797,3031.4,3030.6,0.19911824]
[1769597676790,1.31015063,3031.6,3030.6,0.19911824]
[1769597677094,0.00340528,3031.6,3030.6,0.19911824]
[1769597677587,1.31355591,3031.6,3030.6,0.19911824]
[1769597680091,1.31015063,3031.4,3030.6,0.19911824]
[1769597686790,1.31015063,3030.7,3030.0,0.0036124]
[1769597686992,1.31015063,3030.3,3029.8,0.19911824]
[1769597687390,1.31015063,3030.3,3029.4,0.19911824]
[1769597687993,1.31015063,3030.3,3029.4,0.20157459]
[1769597690799,1.31015063,3029.9,3029.4,0.20157459]
[1769597691102,1.31015063,3029.9,3028.7,2.32532]
[1769597691501,1.31015063,3029.9,3028.7,3.63547063]
[1769597691892,1.31015063,3029.9,3028.7,3.63842039]
[1769597692902,1.31015063,3029.9,3028.8,0.19911824]
[1769597696905,1.31015063,3029.9,3028.9,0.16492417]
[1769597697099,0.18666891,3030.0,3028.9,0.16492417]
[1769597703514,0.16518501,3029.6,3028.9,0.16492417]
[1769597706218,0.16267538,3030.1,3028.9,0.16492417]
[1769597706819,0.16267538,3030.4,3028.9,0.16492417]
[1769597712025,0.16267538,3030.4,3029.6,0.78401589]
[1769597715730,0.16267538,3030.4,3029.6,0.61909172]
[1769597715930,1.31056982,3030.6,3029.7,0.16492417]
[1769597716127,0.15728837,3030.7,3029.7,0.16492417]
[1769597716632,3.45584705,3030.6,3029.7,0.16492417]
[1769597716833,3.45472886,3030.5,3029.7,0.16492417]
[1769597717028,3.45472886,3030.4,3029.7,0.16492417]
[1769597717234,0.15617018,3030.4,3029.7,0.16492417]
[1769597717531,0.15617018,3030.4,3029.6,0.61909172]
[1769597717732,0.15617018,3030.2,3029.6,0.61909172]
[1769597720020,0.15762419,3030.6,3029.6,0.78401589]
[1769597720233,3.2996011,3030.5,3029.7,0.16492417]
[1769597720434,3.2996011,3030.4,3029.7,0.16492417]
[1769597723734,3.45901029,3030.4,3029.7,0.16492417]
[1769597723936,3.2996011,3030.3,3029.7,0.16492417]
[1769597724121,0.15846121,3030.2,3029.6,0.61909172]
[1769597729633,1.31056982,3030.4,3029.6,0.77683274]
[1769597729835,1.47474942,3030.4,3029.6,0.77683274]
[1769597730436,0.1641796,3030.4,3029.6,0.77683274]
[1769597731135,0.1641796,3030.4,3029.7,0.15774102]
[1769597731739,0.1620433,3030.7,3029.7,0.15774102]
[1769597731928,3.46125316,3030.6,3029.7,0.15774102]
[1769597732240,1.47577982,3030.8,3029.7,0.15774102]
[1769597732241,0.32629658,3030.8,3029.7,0.15774102]
[1769597732444,3.30014447,3030.7,3029.7,0.15774102]
[1769597732741,3.30014447,3030.6,3029.7,0.15774102]
[1769597732940,0.16063851,3030.7,3029.7,0.15774102]
[1769597733236,3.30009291,3030.6,3029.7,0.15774102]
[1769597733437,0.16063851,3030.7,3029.7,0.15774102]
[1769597733640,3.29999334,3030.6,3029.7,0.15774102]
[1769597733841,0.16063851,3030.7,3029.7,0.15774102]
[1769597734041,0.15968646,3030.5,3029.7,0.15774102]
[1769597734237,0.15968646,3030.5,3029.6,0.61909172]